[Event "*** Titled Tuesday 3|2 Blitz"]
[Site "Chess.com"]
[Date "2016.02.02"]
[Round "1"]
[White "ItalianMachine"]
[Black "Dr-Bassem"]
[Result "1/2-1/2"]
[WhiteElo "2237"]
[BlackElo "2472"]
[TimeControl "180+2"]
[EndTime "17:09:55 PST"]
[Termination "Game drawn by repetition"]

1. d4 {[%clk 0:03:00.4]} 1... Nf6 {[%clk 0:02:59.5]} 2. c4 {[%clk 0:03:00.9]}
2... e6 {[%clk 0:03:00.7]} 3. Nf3 {[%clk 0:02:57.4]} 3... Bb4+ {[%clk
0:03:00.8]} 4. Bd2 {[%clk 0:02:58.6]} 4... Qe7 {[%clk 0:02:57.5]} 5. Nc3 {[%clk
0:02:57.4]} 5... O-O {[%clk 0:02:55.6]} 6. e3 {[%clk 0:02:56.7]} 6... b6 {[%clk
0:02:49.8]} 7. Bd3 {[%clk 0:02:57.5]} 7... Bb7 {[%clk 0:02:50.7]} 8. O-O {[%clk
0:02:58.3]} 8... Bxc3 {[%clk 0:02:51.7]} 9. Bxc3 {[%clk 0:02:57.2]} 9... Ne4
{[%clk 0:02:53.1]} 10. Be1 {[%clk 0:02:58.3]} 10... f5 {[%clk 0:02:49.1]} 11.
Qc2 {[%clk 0:02:58.3]} 11... d6 {[%clk 0:02:48.6]} 12. Nd2 {[%clk 0:02:56.5]}
12... Nxd2 {[%clk 0:02:25.9]} 13. Bxd2 {[%clk 0:02:55.6]} 13... Nd7 {[%clk
0:02:23.8]} 14. f3 {[%clk 0:02:55.7]} 14... Rae8 {[%clk 0:02:20.6]} 15. Rfe1
{[%clk 0:02:44.7]} 15... Qg5 {[%clk 0:02:17.7]} 16. e4 {[%clk 0:02:32.1]} 16...
f4 {[%clk 0:02:18.1]} 17. e5 {[%clk 0:02:24.9]} 17... Bxf3 {[%clk 0:02:10.4]}
18. Bxh7+ {[%clk 0:02:25.3]} 18... Kh8 {[%clk 0:01:38.7]} 19. Qg6 {[%clk
0:02:24.6]} 19... Qxg2+ {[%clk 0:01:36.4]} 20. Qxg2 {[%clk 0:02:22.8]} 20...
Bxg2 {[%clk 0:01:38.3]} 21. Bg6 {[%clk 0:02:23.5]} 21... f3 {[%clk 0:01:37]} 22.
Kf2 {[%clk 0:02:11.3]} 22... dxe5 {[%clk 0:01:28]} 23. Bxe8 {[%clk 0:02:09.5]}
23... Rxe8 {[%clk 0:01:28.7]} 24. dxe5 {[%clk 0:02:10.3]} 24... Nc5 {[%clk
0:01:29.2]} 25. Re3 {[%clk 0:01:59.2]} 25... Rd8 {[%clk 0:01:27.8]} 26. Bc3
{[%clk 0:01:59]} 26... Kh7 {[%clk 0:01:23.1]} 27. Kg3 {[%clk 0:01:23.2]} 27...
a5 {[%clk 0:01:17.9]} 28. Rc1 {[%clk 0:01:17.2]} 28... Kg6 {[%clk 0:01:14.7]}
29. Rc2 {[%clk 0:01:16]} 29... Kf5 {[%clk 0:01:11.3]} 30. Rd2 {[%clk 0:01:14.4]}
30... Rxd2 {[%clk 0:01:08.6]} 31. Bxd2 {[%clk 0:01:15.2]} 31... Ne4+ {[%clk
0:01:09.1]} 32. Rxe4 {[%clk 0:00:55.9]} 32... Kxe4 {[%clk 0:01:11]} 33. Bg5
{[%clk 0:00:53.8]} 33... Kd3 {[%clk 0:00:59.6]} 34. Kf2 {[%clk 0:00:45.9]} 34...
Kxc4 {[%clk 0:00:25]} 35. Bd8 {[%clk 0:00:45.8]} 35... b5 {[%clk 0:00:19.5]} 36.
Bxc7 {[%clk 0:00:46.6]} 36... a4 {[%clk 0:00:21]} 37. Bd6 {[%clk 0:00:44.9]}
37... Kd3 {[%clk 0:00:19.9]} 38. b3 {[%clk 0:00:41.4]} 38... Kc2 {[%clk
0:00:15.1]} 39. bxa4 {[%clk 0:00:41.6]} 39... bxa4 {[%clk 0:00:16.8]} 40. a3
{[%clk 0:00:43]} 40... Kd3 {[%clk 0:00:17.5]} 41. Bb8 {[%clk 0:00:34.4]} 41...
Ke4 {[%clk 0:00:18.3]} 42. Bd6 {[%clk 0:00:35.3]} 42... Bh3 {[%clk 0:00:19.6]}
43. Bf8 {[%clk 0:00:25.3]} 43... g6 {[%clk 0:00:20.1]} 44. Bg7 {[%clk
0:00:25.9]} 44... Bf5 {[%clk 0:00:20.9]} 45. Bh8 {[%clk 0:00:23]} 45... g5
{[%clk 0:00:22.2]} 46. Bf6 {[%clk 0:00:23.8]} 46... g4 {[%clk 0:00:23.6]} 47.
Bg7 {[%clk 0:00:24.9]} 47... Kd4 {[%clk 0:00:24.8]} 48. Bf6 {[%clk 0:00:26]}
48... Bc2 {[%clk 0:00:24.3]} 49. Bg7 {[%clk 0:00:26.2]} 49... Ke4 {[%clk
0:00:25.5]} 50. Bf6 {[%clk 0:00:27.1]} 50... Kf4 {[%clk 0:00:26.8]} 51. Bg7
{[%clk 0:00:26.8]} 51... Kg5 {[%clk 0:00:27.1]} 52. Bf6+ {[%clk 0:00:28.1]}
52... Kh5 {[%clk 0:00:23.8]} 53. Kg3 {[%clk 0:00:29.3]} 53... Kg6 {[%clk
0:00:25.1]} 54. Bh8 {[%clk 0:00:29.9]} 54... Kf5 {[%clk 0:00:25.5]} 55. Bf6
{[%clk 0:00:30.8]} 55... Ke4 {[%clk 0:00:26.8]} 56. Kf2 {[%clk 0:00:32.2]} 56...
Kd4 {[%clk 0:00:26]} 57. Bg7 {[%clk 0:00:31.9]} 57... Bf5 {[%clk 0:00:26.2]} 58.
Bf6 {[%clk 0:00:32.4]} 58... Kc4 {[%clk 0:00:22.3]} 59. Bg7 {[%clk 0:00:32.8]}
59... Kb3 {[%clk 0:00:23.3]} 60. Bf8 {[%clk 0:00:34.1]} 60... Kc3 {[%clk
0:00:24.5]} 61. Bg7 {[%clk 0:00:34.9]} 61... Kd4 {[%clk 0:00:25.3]} 62. Bf6
{[%clk 0:00:36]} 1/2-1/2

[Event "*** Titled Tuesday 3|2 Blitz"]
[Site "Chess.com"]
[Date "2016.02.02"]
[Round "1"]
[White "tac49"]
[Black "BCNUM8"]
[Result "1-0"]
[WhiteElo "2476"]
[BlackElo "2201"]
[TimeControl "180+2"]
[EndTime "17:12:26 PST"]
[Termination "tac49 won on time"]

1. e4 {[%clk 0:02:49.9]} 1... c5 {[%clk 0:03:00.6]} 2. Nf3 {[%clk 0:02:49.5]}
2... Nc6 {[%clk 0:02:59.9]} 3. Nc3 {[%clk 0:02:47.9]} 3... d6 {[%clk 0:02:57.2]}
4. d4 {[%clk 0:02:47.9]} 4... cxd4 {[%clk 0:02:59.1]} 5. Nxd4 {[%clk 0:02:49.2]}
5... Nf6 {[%clk 0:03:01]} 6. Bg5 {[%clk 0:02:47.5]} 6... Bd7 {[%clk 0:03:02]} 7.
f4 {[%clk 0:02:45.9]} 7... Qb6 {[%clk 0:02:56.1]} 8. Nb3 {[%clk 0:02:42.3]} 8...
Qe3+ {[%clk 0:02:48.4]} 9. Qe2 {[%clk 0:02:37.6]} 9... Ng4 {[%clk 0:02:49.6]}
10. Nd5 {[%clk 0:02:30.2]} 10... Qxe2+ {[%clk 0:02:38]} 11. Bxe2 {[%clk
0:02:32.1]} 11... Rc8 {[%clk 0:02:35.5]} 12. f5 {[%clk 0:02:05.3]} 12... Nge5
{[%clk 0:02:27.9]} 13. O-O-O {[%clk 0:02:03.5]} 13... e6 {[%clk 0:02:06.1]} 14.
Nc3 {[%clk 0:01:56]} 14... Be7 {[%clk 0:01:55.2]} 15. Be3 {[%clk 0:01:48.3]}
15... O-O {[%clk 0:01:49.5]} 16. Nb5 {[%clk 0:01:48.6]} 16... exf5 {[%clk
0:01:43.5]} 17. Nxd6 {[%clk 0:01:37.8]} 17... Bxd6 {[%clk 0:01:43.1]} 18. Rxd6
{[%clk 0:01:39.7]} 18... fxe4 {[%clk 0:01:44.5]} 19. Nc5 {[%clk 0:01:37.9]}
19... Bg4 {[%clk 0:01:40.1]} 20. Re1 {[%clk 0:01:27.8]} 20... Bxe2 {[%clk
0:01:32.9]} 21. Rxe2 {[%clk 0:01:29.7]} 21... Nc4 {[%clk 0:01:34.6]} 22. Rd7
{[%clk 0:01:18.3]} 22... f5 {[%clk 0:01:14.8]} 23. Nxb7 {[%clk 0:01:03.4]} 23...
f4 {[%clk 0:01:15.6]} 24. Bc5 {[%clk 0:01:01.1]} 24... f3 {[%clk 0:01:17.1]} 25.
gxf3 {[%clk 0:00:52.8]} 25... exf3 {[%clk 0:01:19]} 26. Rf2 {[%clk 0:00:51.4]}
26... Rf5 {[%clk 0:01:08.2]} 27. b3 {[%clk 0:00:30]} 27... N6e5 {[%clk
0:01:05.7]} 28. Rd5 {[%clk 0:00:24.3]} 28... Nb6 {[%clk 0:01:00.3]} 29. Rd1
{[%clk 0:00:15.6]} 29... Ng4 {[%clk 0:00:59.7]} 30. Rff1 {[%clk 0:00:13.8]}
30... Rcxc5 {[%clk 0:00:57.1]} 31. Nxc5 {[%clk 0:00:13.8]} 31... Ne3 {[%clk
0:00:58.1]} 32. Rd8+ {[%clk 0:00:11.2]} 32... Kf7 {[%clk 0:00:59.8]} 33. Rf2
{[%clk 0:00:10.7]} 33... Rxc5 {[%clk 0:01:00.1]} 34. Rxf3+ {[%clk 0:00:11.1]}
34... Nf5 {[%clk 0:00:58.9]} 35. c4 {[%clk 0:00:11.1]} 35... Kg6 {[%clk
0:00:53.1]} 36. Kb2 {[%clk 0:00:10.5]} 36... Rc7 {[%clk 0:00:52.5]} 37. Kc3
{[%clk 0:00:10.6]} 37... Nd7 {[%clk 0:00:53.8]} 38. Re8 {[%clk 0:00:09.6]} 38...
Nf6 {[%clk 0:00:54.2]} 39. Re1 {[%clk 0:00:09.5]} 39... Nd5+ {[%clk 0:00:50.1]}
40. Kb2 {[%clk 0:00:08.6]} 40... Nde7 {[%clk 0:00:49.7]} 41. Re6+ {[%clk
0:00:08.4]} 41... Kf7 {[%clk 0:00:50.7]} 42. Ra6 {[%clk 0:00:09.7]} 42... g5
{[%clk 0:00:51.4]} 43. Kc3 {[%clk 0:00:08.5]} 43... g4 {[%clk 0:00:51.9]} 44.
Rf1 {[%clk 0:00:08.3]} 44... h5 {[%clk 0:00:52.5]} 45. b4 {[%clk 0:00:09]} 45...
Nd5+ {[%clk 0:00:52.2]} 46. Kb3 {[%clk 0:00:08.4]} 46... Ne7 {[%clk 0:00:49.8]}
47. Rh6 {[%clk 0:00:08]} 47... Kg7 {[%clk 0:00:39.5]} 48. Rxh5 {[%clk
0:00:08.2]} 48... Kg6 {[%clk 0:00:41.4]} 49. Rh8 {[%clk 0:00:08.4]} 49... Nd4+
{[%clk 0:00:37.2]} 50. Kc3 {[%clk 0:00:07.9]} 50... Nf3 {[%clk 0:00:31.1]} 51.
h3 {[%clk 0:00:07.5]} 51... Kg7 {[%clk 0:00:29.6]} 52. hxg4 {[%clk 0:00:06.7]}
52... Kxh8 {[%clk 0:00:29.6]} 53. Rxf3 {[%clk 0:00:08]} 53... Kg7 {[%clk
0:00:31.5]} 54. b5 {[%clk 0:00:08.7]} 54... Kg6 {[%clk 0:00:32]} 55. Kb4 {[%clk
0:00:09.6]} 55... Kg5 {[%clk 0:00:32.1]} 56. a4 {[%clk 0:00:10.6]} 56... Kxg4
{[%clk 0:00:33.2]} 57. Rf8 {[%clk 0:00:11.8]} 57... Nf5 {[%clk 0:00:34.1]} 58.
c5 {[%clk 0:00:11.9]} 58... Nd4 {[%clk 0:00:34.2]} 59. a5 {[%clk 0:00:10]} 59...
Rb7 {[%clk 0:00:34]} 60. b6 {[%clk 0:00:08.3]} 60... axb6 {[%clk 0:00:34.7]} 61.
cxb6 {[%clk 0:00:09.8]} 61... Re7 {[%clk 0:00:29.3]} 62. a6 {[%clk 0:00:08.4]}
62... Re6 {[%clk 0:00:23.5]} 63. Kc5 {[%clk 0:00:07.5]} 63... Nb3+ {[%clk
0:00:24.8]} 64. Kb5 {[%clk 0:00:06.6]} 64... Nd4+ {[%clk 0:00:26.1]} 65. Ka5
{[%clk 0:00:07]} 65... Re5+ {[%clk 0:00:26.5]} 66. Ka4 {[%clk 0:00:07.1]} 66...
Re6 {[%clk 0:00:26.9]} 67. b7 {[%clk 0:00:04]} 67... Rxa6+ {[%clk 0:00:27]} 68.
Kb4 {[%clk 0:00:05.3]} 68... Re6 {[%clk 0:00:24.7]} 69. Kc4 {[%clk 0:00:04.2]}
69... Nc6 {[%clk 0:00:22.6]} 70. Kd5 {[%clk 0:00:05.1]} 70... Rg6 {[%clk
0:00:23]} 71. Rc8 {[%clk 0:00:05.7]} 71... Rg7 {[%clk 0:00:23.3]} 72. Kxc6
{[%clk 0:00:05.3]} 72... Rg6+ {[%clk 0:00:24.8]} 73. Kc7 {[%clk 0:00:06]} 73...
Rg7+ {[%clk 0:00:26.7]} 74. Kb6 {[%clk 0:00:07.2]} 74... Kf5 {[%clk 0:00:28.6]}
75. Rc6 {[%clk 0:00:08.8]} 75... Rg8 {[%clk 0:00:28.2]} 76. Rc8 {[%clk
0:00:08.5]} 76... Ke5 {[%clk 0:00:30.1]} 77. Rxg8 {[%clk 0:00:08.1]} 1-0

[Event "*** Titled Tuesday 3|2 Blitz"]
[Site "Chess.com"]
[Date "2016.02.02"]
[Round "2"]
[White "Er_is_geen_hoop_meer"]
[Black "dsanchez1973"]
[Result "1-0"]
[WhiteElo "2301"]
[BlackElo "1971"]
[TimeControl "180+2"]
[EndTime "17:14:26 PST"]
[Termination "Er_is_geen_hoop_meer won by resignation"]

1. d4 {[%clk 0:03:01.9]} 1... d5 {[%clk 0:02:59.9]} 2. c4 {[%clk 0:03:02.6]}
2... c6 {[%clk 0:03:01.1]} 3. Nf3 {[%clk 0:03:03.8]} 3... e6 {[%clk 0:03:01.8]}
4. e3 {[%clk 0:03:03.4]} 4... Nf6 {[%clk 0:03:02.8]} 5. b3 {[%clk 0:03:02.7]}
5... Nbd7 {[%clk 0:03:01.5]} 6. Bb2 {[%clk 0:03:04.1]} 6... a6 {[%clk
0:03:02.4]} 7. Bd3 {[%clk 0:03:04.7]} 7... b5 {[%clk 0:03:03.3]} 8. Nbd2 {[%clk
0:03:05.9]} 8... Bd6 {[%clk 0:03:01.4]} 9. O-O {[%clk 0:03:07]} 9... O-O {[%clk
0:03:01.8]} 10. Ne5 {[%clk 0:03:07.5]} 10... Qc7 {[%clk 0:02:58.1]} 11. f4
{[%clk 0:03:08.5]} 11... Ne8 {[%clk 0:02:57.1]} 12. Rc1 {[%clk 0:03:05.9]} 12...
f6 {[%clk 0:02:41.8]} 13. Nxc6 {[%clk 0:03:04.1]} 13... Qxc6 {[%clk 0:02:40.7]}
14. cxd5 {[%clk 0:03:05.5]} 14... Qxd5 {[%clk 0:02:34.1]} 15. Be4 {[%clk
0:03:06.5]} 1-0

[Event "*** Titled Tuesday 3|2 Blitz"]
[Site "Chess.com"]
[Date "2016.02.02"]
[Round "2"]
[White "Thomaslegend"]
[Black "dwyde"]
[Result "1-0"]
[WhiteElo "2105"]
[BlackElo "2276"]
[TimeControl "180+2"]
[EndTime "17:15:18 PST"]
[Termination "Thomaslegend won by resignation"]

1. Nf3 {[%clk 0:03:01.9]} 1... d5 {[%clk 0:03:00.1]} 2. g3 {[%clk 0:03:02.3]}
2... e6 {[%clk 0:02:59.7]} 3. Bg2 {[%clk 0:03:03.2]} 3... c5 {[%clk 0:03:01.3]}
4. O-O {[%clk 0:03:04.2]} 4... Nf6 {[%clk 0:03:00.7]} 5. d4 {[%clk 0:03:05.4]}
5... Nc6 {[%clk 0:02:59.6]} 6. c4 {[%clk 0:03:05.9]} 6... Be7 {[%clk 0:03:00.1]}
7. dxc5 {[%clk 0:03:06]} 7... Bxc5 {[%clk 0:03:00.9]} 8. cxd5 {[%clk 0:03:05.8]}
8... exd5 {[%clk 0:03:02.8]} 9. Nc3 {[%clk 0:03:05.4]} 9... O-O {[%clk
0:03:03.7]} 10. Bg5 {[%clk 0:03:06.5]} 10... Be6 {[%clk 0:03:02.6]} 11. Bxf6
{[%clk 0:03:00.7]} 11... Qxf6 {[%clk 0:03:03.1]} 12. Nxd5 {[%clk 0:03:01.6]}
12... Qxb2 {[%clk 0:03:01.8]} 13. Nc7 {[%clk 0:02:50.3]} 13... Rad8 {[%clk
0:03:00.5]} 14. Qc1 {[%clk 0:02:51.5]} 14... Qxc1 {[%clk 0:02:57.2]} 15. Rfxc1
{[%clk 0:02:46.5]} 15... Ba3 {[%clk 0:02:56.6]} 16. Nxe6 {[%clk 0:02:42.9]}
16... fxe6 {[%clk 0:02:51.7]} 17. Rd1 {[%clk 0:02:43.5]} 17... e5 {[%clk
0:02:46.4]} 18. Ng5 {[%clk 0:02:40.5]} 18... Rxd1+ {[%clk 0:02:39.4]} 19. Rxd1
{[%clk 0:02:40.8]} 19... Rd8 {[%clk 0:02:39.9]} 20. Bd5+ {[%clk 0:02:20.8]} 1-0

[Event "*** Titled Tuesday 3|2 Blitz"]
[Site "Chess.com"]
[Date "2016.02.02"]
[Round "2"]
[White "BillieKimbah"]
[Black "tac49"]
[Result "1/2-1/2"]
[WhiteElo "2484"]
[BlackElo "2476"]
[TimeControl "180+2"]
[EndTime "17:17:12 PST"]
[Termination "Game drawn by agreement"]

1. d4 {[%clk 0:03:00.3]} 1... Nf6 {[%clk 0:02:55.8]} 2. Nf3 {[%clk 0:03:01.1]}
2... g6 {[%clk 0:02:56.8]} 3. Bf4 {[%clk 0:03:01.7]} 3... Bg7 {[%clk 0:02:57.4]}
4. e3 {[%clk 0:03:02.9]} 4... O-O {[%clk 0:02:58.4]} 5. h3 {[%clk 0:03:04]} 5...
d6 {[%clk 0:02:59.4]} 6. Be2 {[%clk 0:03:04.5]} 6... Ne4 {[%clk 0:02:59.3]} 7.
O-O {[%clk 0:03:04.1]} 7... Nd7 {[%clk 0:02:59.7]} 8. Bh2 {[%clk 0:03:03.4]}
8... b6 {[%clk 0:02:55.7]} 9. Nbd2 {[%clk 0:03:01]} 9... Nxd2 {[%clk 0:02:54.8]}
10. Qxd2 {[%clk 0:03:00.8]} 10... Bb7 {[%clk 0:02:55.3]} 11. a4 {[%clk 0:02:58]}
11... a5 {[%clk 0:02:55]} 12. Rfe1 {[%clk 0:02:47.5]} 12... e5 {[%clk
0:02:47.7]} 13. dxe5 {[%clk 0:02:43.7]} 13... Nxe5 {[%clk 0:02:46.2]} 14. Nxe5
{[%clk 0:02:41.2]} 14... Bxe5 {[%clk 0:02:38.2]} 15. Bxe5 {[%clk 0:02:41.1]}
15... dxe5 {[%clk 0:02:40.1]} 16. Qc3 {[%clk 0:02:42.5]} 16... Qe7 {[%clk
0:02:38.3]} 17. Red1 {[%clk 0:02:39.1]} 17... Rfd8 {[%clk 0:02:37.2]} 18. b3
{[%clk 0:02:22.5]} 18... Kg7 {[%clk 0:02:34.9]} 19. f3 {[%clk 0:02:09.3]} 19...
f6 {[%clk 0:02:31.9]} 20. Kf2 {[%clk 0:02:09.5]} 20... Rxd1 {[%clk 0:02:29.9]}
21. Rxd1 {[%clk 0:02:09.7]} 21... Rd8 {[%clk 0:02:30.7]} 22. Rxd8 {[%clk
0:02:07.7]} 22... Qxd8 {[%clk 0:02:32.6]} 23. Qc4 {[%clk 0:02:08.1]} 23... Qd6
{[%clk 0:02:23.8]} 24. Bd3 {[%clk 0:02:01.5]} 24... Bd5 {[%clk 0:02:18]} 25. Qb5
{[%clk 0:02:00.4]} 25... Qc6 {[%clk 0:02:07.8]} 26. e4 {[%clk 0:01:54.6]} 26...
Qxb5 {[%clk 0:02:04.4]} 27. Bxb5 {[%clk 0:01:55.9]} 27... Be6 {[%clk 0:02:03.1]}
28. Ke3 {[%clk 0:01:53.9]} 1/2-1/2

[Event "*** Titled Tuesday 3|2 Blitz"]
[Site "Chess.com"]
[Date "2016.02.02"]
[Round "2"]
[White "Recombinant"]
[Black "kharposh"]
[Result "1-0"]
[WhiteElo "2217"]
[BlackElo "2051"]
[TimeControl "180+2"]
[EndTime "17:17:40 PST"]
[Termination "Recombinant won by checkmate"]

1. d4 {[%clk 0:03:01.9]} 1... d5 {[%clk 0:02:57.9]} 2. c4 {[%clk 0:03:02.7]}
2... e6 {[%clk 0:02:56.8]} 3. Nc3 {[%clk 0:03:02.8]} 3... c5 {[%clk 0:02:55.8]}
4. cxd5 {[%clk 0:03:00.2]} 4... exd5 {[%clk 0:02:56.2]} 5. Nf3 {[%clk
0:03:00.4]} 5... Nc6 {[%clk 0:02:55.8]} 6. g3 {[%clk 0:03:00.9]} 6... Bg4 {[%clk
0:02:53.7]} 7. dxc5 {[%clk 0:02:58.5]} 7... Bxc5 {[%clk 0:02:54.1]} 8. Qxd5
{[%clk 0:02:57.6]} 8... Qxd5 {[%clk 0:02:53]} 9. Nxd5 {[%clk 0:02:58]} 9...
O-O-O {[%clk 0:02:49]} 10. Ne3 {[%clk 0:02:20.3]} 10... Nb4 {[%clk 0:02:18.7]}
11. a3 {[%clk 0:02:21]} 11... Bxe3 {[%clk 0:02:18.5]} 12. axb4 {[%clk
0:02:21.1]} 12... Bxf3 {[%clk 0:02:07.9]} 13. exf3 {[%clk 0:02:19.8]} 13... Bb6
{[%clk 0:02:05.5]} 14. Bf4 {[%clk 0:02:18.3]} 14... Re8+ {[%clk 0:02:01.3]} 15.
Kd2 {[%clk 0:02:19]} 15... Nf6 {[%clk 0:01:49.3]} 16. Bh3+ {[%clk 0:02:17.7]}
16... Kd8 {[%clk 0:01:49.5]} 17. Kc2 {[%clk 0:02:08]} 17... Re2+ {[%clk
0:01:47.7]} 18. Kb3 {[%clk 0:02:08.1]} 18... Bxf2 {[%clk 0:01:27.9]} 19. Rhd1+
{[%clk 0:02:04.4]} 19... Ke8 {[%clk 0:01:27.7]} 20. Rac1 {[%clk 0:02:02.5]}
20... Kf8 {[%clk 0:01:10.1]} 21. Rc8+ {[%clk 0:01:58.3]} 21... Re8 {[%clk
0:01:06.7]} 22. Rdd8 {[%clk 0:01:51.8]} 22... Ke7 {[%clk 0:01:00.4]} 23. Bd6#
{[%clk 0:01:51]} 1-0

[Event "*** Titled Tuesday 3|2 Blitz"]
[Site "Chess.com"]
[Date "2016.02.02"]
[Round "2"]
[White "LADIESGET2KNOWME"]
[Black "HansCoolNiemann"]
[Result "1-0"]
[WhiteElo "2317"]
[BlackElo "2200"]
[TimeControl "180+2"]
[EndTime "17:18:04 PST"]
[Termination "LADIESGET2KNOWME won by resignation"]

1. d4 {[%clk 0:03:01.9]} 1... Nf6 {[%clk 0:02:59.1]} 2. Nc3 {[%clk 0:03:03.3]}
2... e6 {[%clk 0:02:56.8]} 3. Bg5 {[%clk 0:03:04.6]} 3... d5 {[%clk 0:02:54.8]}
4. e4 {[%clk 0:03:05.3]} 4... dxe4 {[%clk 0:02:55.2]} 5. Nxe4 {[%clk 0:03:06.4]}
5... Be7 {[%clk 0:02:56.3]} 6. Bxf6 {[%clk 0:03:07.9]} 6... gxf6 {[%clk
0:02:58.2]} 7. Nf3 {[%clk 0:03:09.8]} 7... f5 {[%clk 0:02:58.8]} 8. Nc3 {[%clk
0:03:09.4]} 8... a6 {[%clk 0:02:59.6]} 9. g3 {[%clk 0:03:10.6]} 9... b5 {[%clk
0:03:00.4]} 10. Bg2 {[%clk 0:03:11.9]} 10... Bb7 {[%clk 0:03:01.8]} 11. O-O
{[%clk 0:03:12.9]} 11... c5 {[%clk 0:03:02.5]} 12. Re1 {[%clk 0:03:11.9]} 12...
O-O {[%clk 0:02:59.4]} 13. Qd2 {[%clk 0:03:01.3]} 13... cxd4 {[%clk 0:02:58.7]}
14. Nxd4 {[%clk 0:02:58.6]} 14... Bxg2 {[%clk 0:02:58.3]} 15. Kxg2 {[%clk
0:03:00.5]} 15... Bf6 {[%clk 0:02:59.5]} 16. Rad1 {[%clk 0:02:58.8]} 16... b4
{[%clk 0:02:58.8]} 17. Na4 {[%clk 0:02:49.1]} 17... Qd5+ {[%clk 0:02:46.6]} 18.
Kg1 {[%clk 0:02:46.7]} 18... Qa5 {[%clk 0:02:45.7]} 19. b3 {[%clk 0:02:39]}
19... Rd8 {[%clk 0:02:44.6]} 20. Qe3 {[%clk 0:02:21.4]} 20... Qc7 {[%clk
0:02:36.8]} 21. Nxe6 {[%clk 0:02:14.4]} 21... fxe6 {[%clk 0:02:32.5]} 22. Qxe6+
{[%clk 0:02:13.5]} 22... Kg7 {[%clk 0:02:32.7]} 23. Qxf5 {[%clk 0:01:54.2]}
23... Nc6 {[%clk 0:01:52.4]} 24. Nc5 {[%clk 0:01:53.7]} 24... Rxd1 {[%clk
0:01:46.9]} 25. Ne6+ {[%clk 0:01:42.9]} 25... Kf7 {[%clk 0:01:44]} 26. Qxh7+
{[%clk 0:01:35.5]} 26... Ke8 {[%clk 0:01:35.7]} 27. Nxc7+ {[%clk 0:01:35.8]}
27... Kd8 {[%clk 0:01:32.5]} 28. Rxd1+ {[%clk 0:01:35.4]} 28... Kc8 {[%clk
0:01:34.4]} 29. Nxa8 {[%clk 0:01:34.8]} 1-0

[Event "*** Titled Tuesday 3|2 Blitz"]
[Site "Chess.com"]
[Date "2016.02.02"]
[Round "2"]
[White "ethylalcohol"]
[Black "DaPazz"]
[Result "0-1"]
[WhiteElo "1723"]
[BlackElo "1991"]
[TimeControl "180+2"]
[EndTime "17:19:35 PST"]
[Termination "DaPazz won on time"]

1. e4 {[%clk 0:02:59.4]} 1... c5 {[%clk 0:02:58.3]} 2. Nc3 {[%clk 0:02:59.7]}
2... Nc6 {[%clk 0:02:56.7]} 3. g3 {[%clk 0:03:00.5]} 3... g6 {[%clk 0:02:57.9]}
4. Bg2 {[%clk 0:03:01.9]} 4... Bg7 {[%clk 0:02:59.2]} 5. d3 {[%clk 0:03:02.9]}
5... e6 {[%clk 0:03:00.4]} 6. Be3 {[%clk 0:03:01.6]} 6... d6 {[%clk 0:03:00.6]}
7. Qd2 {[%clk 0:03:01]} 7... Nge7 {[%clk 0:03:01.5]} 8. Bh6 {[%clk 0:02:20.2]}
8... O-O {[%clk 0:02:59.9]} 9. h4 {[%clk 0:02:06.9]} 9... Bxh6 {[%clk
0:02:59.3]} 10. Qxh6 {[%clk 0:02:06.5]} 10... f6 {[%clk 0:03:00.8]} 11. O-O-O
{[%clk 0:01:59.6]} 11... Rb8 {[%clk 0:02:57.5]} 12. Nf3 {[%clk 0:01:49.2]} 12...
Nd4 {[%clk 0:02:55.8]} 13. h5 {[%clk 0:00:28.2]} 13... Qe8 {[%clk 0:02:53.3]}
14. hxg6 {[%clk 0:00:15.9]} 14... Qxg6 {[%clk 0:02:53]} 15. Nxd4 {[%clk
0:00:11.6]} 15... Qxh6+ {[%clk 0:02:47.5]} 16. Rxh6 {[%clk 0:00:11.5]} 16...
cxd4 {[%clk 0:02:48]} 17. Nb5 {[%clk 0:00:11.4]} 17... Kg7 {[%clk 0:02:47.2]}
18. Rdh1 {[%clk 0:00:11.1]} 18... Rh8 {[%clk 0:02:41.1]} 19. Nxd6 {[%clk
0:00:10.8]} 19... Bd7 {[%clk 0:02:39.5]} 20. f4 {[%clk 0:00:09.8]} 20... b5
{[%clk 0:02:30.7]} 21. e5 {[%clk 0:00:10.6]} 21... f5 {[%clk 0:02:23.6]} 22. Rf6
{[%clk 0:00:08.7]} 22... Rbf8 {[%clk 0:02:21.9]} 23. Rxf8 {[%clk 0:00:05.4]}
23... Rxf8 {[%clk 0:02:21.9]} 24. Kd2 {[%clk 0:00:06.3]} 24... a6 {[%clk
0:02:19.7]} 25. Rh5 {[%clk 0:00:06.7]} 25... h6 {[%clk 0:02:17.1]} 26. Rh1
{[%clk 0:00:06.9]} 26... Bc6 {[%clk 0:02:18]} 27. Rg1 {[%clk 0:00:06.3]} 27...
Bxg2 {[%clk 0:02:18.2]} 28. Rxg2 {[%clk 0:00:07.5]} 28... Nd5 {[%clk 0:02:19.8]}
29. Rf2 {[%clk 0:00:07]} 29... h5 {[%clk 0:02:20.5]} 30. c3 {[%clk 0:00:07.7]}
30... dxc3+ {[%clk 0:02:20]} 31. bxc3 {[%clk 0:00:09.6]} 31... b4 {[%clk
0:02:19.8]} 32. cxb4 {[%clk 0:00:09.1]} 32... Nxb4 {[%clk 0:02:20.7]} 33. a3
{[%clk 0:00:10.2]} 33... Nd5 {[%clk 0:02:21.6]} 34. Rf1 {[%clk 0:00:10.3]} 34...
Rb8 {[%clk 0:02:22.4]} 35. Nc4 {[%clk 0:00:05.5]} 35... Rb3 {[%clk 0:02:21.9]}
36. Rc1 {[%clk 0:00:03.5]} 36... Kg6 {[%clk 0:02:22.1]} 0-1